bitfinex/quotes_SOLUSD_20250920
["timestamp","ask_amount","ask_price","bid_price","bid_amount"]
[1758401074123,8.4351417,239.87,239.86,32.46]
[1758401074323,4.16892483,239.87,239.86,32.46]
[1758401074525,8.4351417,239.87,239.86,32.46]
[1758401074838,5.62375763,239.87,239.86,32.46]
[1758401075036,8.4351417,239.87,239.86,32.46]
[1758401075415,5.62375763,239.87,239.86,32.46]
[1758401075620,8.4351417,239.87,239.86,32.46]
[1758401075818,6.44299501,239.87,239.86,32.46]
[1758401076027,9.25437908,239.87,239.86,32.46]
[1758401076412,6.44299501,239.87,239.86,32.46]
[1758401076609,9.25437908,239.87,239.86,32.46]
[1758401077139,6.44299501,239.87,239.86,32.46]
[1758401081328,2.27407018,239.87,239.86,32.46]
[1758401091229,9.25188669,239.87,239.86,32.46]
[1758401093449,13.42081152,239.87,239.86,32.46]
[1758401093656,13.42081152,239.87,239.84,0.22620036]
[1758401093657,16.23088687,239.87,239.85,31.74]
[1758401093838,13.42081152,239.87,239.85,31.74]
[1758401094035,6.44299501,239.87,239.85,31.74]
[1758401094236,2.81049995,239.86,239.85,31.74]
[1758401094543,5.08457013,239.86,239.85,32.46]
[1758401094741,21.78892417,239.86,239.85,32.46]
[1758401094933,9.25366877,239.86,239.85,32.46]
[1758401095132,6.44316882,239.86,239.85,32.46]
[1758401095348,18.97842423,239.86,239.85,32.46]
[1758401095555,21.78892418,239.86,239.85,32.46]
[1758401095736,9.25366877,239.86,239.85,32.46]
[1758401096155,6.44316882,239.86,239.85,32.46]
[1758401096453,9.25366877,239.86,239.85,32.46]
[1758401098534,21.78892417,239.86,239.85,32.46]
[1758401099053,9.25366877,239.86,239.85,32.46]
[1758401099353,9.25366877,239.86,239.85,31.74]
[1758401099762,9.25366877,239.86,239.84,0.22620036]
[1758401099955,2.81049995,239.85,239.84,0.22620036]
[1758401100456,6.97977241,239.85,239.84,0.22620036]
[1758401100655,19.51555162,239.85,239.84,0.22620036]
[1758401101740,19.51555162,239.85,239.84,0.88620036]
[1758401111261,17.62034934,239.85,239.84,0.88620036]
[1758401112137,12.53577921,239.85,239.84,0.88620036]
[1758401112335,2.27407018,239.88,239.84,0.88620036]
[1758401112556,2.81269911,239.87,239.85,32.44]
[1758401112863,2.81269911,239.86,239.85,31.74]
[1758401113168,0.1,239.89,239.86,4.16909864]
[1758401113346,2.81280656,239.88,239.86,4.86909864]
[1758401113548,0.1,239.89,239.86,4.16909864]
[1758401113853,2.81261802,239.88,239.86,4.16909864]
[1758401114058,0.1,239.89,239.87,0.7]
[1758401114250,2.81261786,239.88,239.87,0.7]
[1758401116167,5.08668804,239.88,239.87,0.7]
[1758401119354,2.27407018,239.88,239.87,0.7]
[1758401122763,0.1,239.89,239.87,0.7]
[1758401122958,0.1,239.89,239.88,0.7]
[1758401123165,2.91148457,239.89,239.88,0.7]
[1758401129170,0.1,239.89,239.88,0.7]
[1758401135784,1.55517359,239.89,239.88,0.7]
[1758401137689,1.55517359,239.89,239.87,0.68]
[1758401139079,1.45517359,239.88,239.87,0.68]
[1758401139470,1.45517359,239.88,239.85,32.42]
[1758401139784,1.45517359,239.88,239.86,0.68]
[1758401139990,1.45517359,239.88,239.85,0.68]
[1758401140171,1.45517359,239.87,239.86,31.74]
[1758401140367,1.45517359,239.87,239.84,31.96620036]
[1758401140673,1.45517359,239.85,239.84,0.90620036]
[1758401140876,1.45517359,239.85,239.84,0.22620036]
[1758401141272,1.45517359,239.85,239.84,0.90620036]
[1758401143883,5.62430406,239.85,239.84,0.90620036]
[1758401144988,9.79357652,239.85,239.84,0.22620036]
[1758401146000,9.79357652,239.85,239.84,0.90620036]
[1758401146404,5.62430406,239.85,239.84,0.90620036]
[1758401150495,1.45517359,239.85,239.84,0.90620036]
[1758401155113,1.45517359,239.85,239.84,0.22620036]
[1758401155699,1.45517359,239.85,239.84,0.90620036]
[1758401162992,4.26750372,239.86,239.84,0.90620036]
[1758401163310,1.45517359,239.86,239.84,0.90620036]
[1758401171618,1.45517359,239.86,239.85,0.69]
[1758401171801,4.26770649,239.86,239.85,0.69]
[1758401174721,4.26770649,239.86,239.84,0.22620036]
[1758401174927,1.45517359,239.86,239.84,0.91620036]
[1758401180926,1.45517359,239.86,239.85,0.69]
[1758401181129,4.2691014,239.86,239.84,0.22620036]
[1758401181322,1.45517359,239.86,239.84,0.91620036]
[1758401181723,1.45517359,239.86,239.84,0.22620036]
[1758401181931,1.45517359,239.86,239.85,0.69]
[1758401182132,4.2695096,239.86,239.84,0.22620036]
[1758401182318,2.81483079,239.85,239.84,0.91620036]
[1758401182727,2.81483079,239.85,239.84,0.22620036]
[1758401183530,2.81483079,239.85,239.84,0.91620036]
[1758401192332,4.27000438,239.85,239.84,0.22620036]
[1758401194430,4.27000438,239.85,239.84,0.89620036]
[1758401197853,5.08933391,239.85,239.84,0.89620036]
[1758401207143,2.81483079,239.85,239.84,0.89620036]
[1758401207339,2.27450312,239.88,239.84,0.89620036]
[1758401207538,2.81649489,239.87,239.85,0.67]
[1758401207853,2.81649489,239.86,239.85,0.67]
[1758401208352,10.52206398,239.89,239.85,0.67]
[1758401208353,0.1,239.89,239.85,0.67]
[1758401208651,2.81611495,239.88,239.86,31.72]
[1758401208861,2.81611495,239.87,239.86,31.72]
[1758401209234,0.1,239.89,239.86,35.88909864]
[1758401209432,2.81542411,239.88,239.87,0.67]
[1758401210264,0.1,239.89,239.87,0.67]
[1758401211850,0.1,239.89,239.88,0.67]
[1758401212039,2.91439755,239.89,239.88,0.67]
[1758401212460,2.91439755,239.89,239.87,0.67]
[1758401212761,0.1,239.89,239.88,0.67]
[1758401212970,2.91403478,239.89,239.88,0.67]
[1758401216461,0.1,239.89,239.88,0.67]
[1758401216643,0.1,239.89,239.88,4.83875104]
[1758401220149,0.1,239.89,239.88,18.43434505]
[1758401220540,0.1,239.89,239.88,20.10522372]
[1758401221156,0.1,239.89,239.88,18.43434505]
[1758401221461,0.1,239.89,239.88,20.10522372]
[1758401225462,0.1,239.89,239.88,51.30522372]
[1758401225862,0.1,239.89,239.88,83.02522372]
[1758401232073,0.1,239.89,239.88,51.30522372]
[1758401232260,0.1,239.89,239.88,83.42209882]
[1758401232460,0.1,239.89,239.88,83.00522372]
[1758401235873,0.1,239.89,239.88,51.30522372]
[1758401236168,0.1,239.89,239.88,83.42209882]
[1758401236471,0.1,239.89,239.88,83.00522372]
[1758401239074,0.1,239.89,239.88,51.30522372]
[1758401239272,0.1,239.89,239.88,85.27972684]
[1758401241753,0.1,239.89,239.88,50.63522372]
[1758401241959,0.1,239.89,239.88,45.29559401]
[1758401242262,0.1,239.89,239.88,13.59559401]
[1758401242468,0.1,239.89,239.88,45.29559401]
[1758401245573,0.1,239.89,239.88,50.15434505]
[1758401252181,0.1,239.89,239.88,49.46434505]
[1758401255489,0.1,239.89,239.88,17.76434505]
[1758401255695,0.1,239.89,239.88,49.46434505]
[1758401256598,0.1,239.89,239.88,50.12434505]
[1758401256989,0.1,239.89,239.88,18.42434505]
[1758401257199,0.1,239.89,239.88,50.12434505]
[1758401262075,0.1,239.89,239.88,18.42434505]
[1758401262398,0.1,239.89,239.88,50.12434505]
[1758401264197,0.1,239.89,239.88,17.76434505]
[1758401264498,0.1,239.89,239.88,49.46434505]
[1758401267791,0.1,239.89,239.88,50.12434505]
[1758401277711,0.1,239.89,239.88,50.54122015]
[1758401289528,0.1,239.91,239.88,50.54122015]
[1758401289529,0.1,239.91,239.89,13.59559401]
[1758401289835,0.1,239.91,239.9,47.16695333]
[1758401290017,0.1,239.91,239.9,47.86695333]
[1758401290530,0.1,239.91,239.9,49.65734357]
[1758401291026,0.1,239.91,239.9,53.82574707]
[1758401301032,0.1,239.91,239.9,51.0512281]
[1758401301239,1.75451897,239.91,239.87,2.17736805]
[1758401301535,1.45451897,239.89,239.87,2.17736805]
[1758401301711,0.2,239.88,239.87,2.17736805]
[1758401302910,0.2,239.88,239.87,34.09736805]
[1758401303115,5.92283672,239.88,239.87,34.09736805]
[1758401304326,0.2,239.88,239.87,34.09736805]
[1758401310648,11.54594839,239.89,239.87,34.09736805]
[1758401310830,11.74594839,239.89,239.87,34.09736805]
[1758401312048,11.74594839,239.89,239.87,2.17736805]
[1758401312246,11.74594839,239.89,239.88,31.9]
[1758401313522,11.54594839,239.89,239.88,31.9]
[1758401316252,11.54594839,239.89,239.87,2.17736805]
[1758401316437,11.54594839,239.89,239.88,31.88]
[1758401317052,11.74594839,239.89,239.88,31.88]
[1758401317248,5.82311167,239.89,239.88,31.88]
[1758401317442,17.36906006,239.89,239.88,31.88]
[1758401319725,18.18887154,239.89,239.88,31.88]
[1758401328363,15.91454109,239.89,239.88,31.88]
[1758401328556,18.18887154,239.89,239.88,31.88]
[1758401330938,6.44292315,239.89,239.88,31.88]
[1758401332060,6.44292315,239.89,239.87,2.88736805]
[1758401332356,6.44292315,239.89,239.88,31.86]
[1758401332954,6.44292315,239.89,239.87,2.17736805]
[1758401333342,0.2,239.88,239.86,31.86]
[1758401333545,2.47433045,239.87,239.84,0.22620036]
[1758401333875,2.27433045,239.85,239.84,0.22620036]
[1758401334655,2.47433045,239.85,239.84,0.22620036]
[1758401334862,18.98042984,239.85,239.84,0.22620036]
[1758401337242,6.44360291,239.85,239.84,0.22620036]
[1758401337440,0.1,239.91,239.84,0.90620036]
[1758401337661,0.1,239.91,239.86,13.59559401]
[1758401337841,0.1,239.91,239.88,13.59559401]
[1758401338047,0.1,239.91,239.89,32.08]
[1758401338341,0.1,239.91,239.9,0.68]
[1758401339447,0.1,239.91,239.9,32.74]
[1758401344366,2.904821,239.91,239.9,32.74]
[1758401345444,2.904821,239.91,239.9,32.72]
[1758401345966,2.904821,239.91,239.84,10.6498161]
[1758401345967,9.3473812,239.91,239.87,32.7]
[1758401346168,2.804821,239.9,239.88,0.66]
[1758401346472,2.804821,239.89,239.88,0.66]
[1758401346875,6.97339826,239.89,239.87,32.04]
[1758401347068,2.804821,239.88,239.87,32.7]
[1758401349661,6.97357204,239.88,239.87,32.7]
[1758401351179,6.97357204,239.88,239.87,0.66]
[1758401351363,6.97357204,239.88,239.87,32.68]
[1758401351674,6.97357204,239.88,239.87,0.66]
[1758401356778,2.804821,239.88,239.87,0.66]
[1758401363186,6.97357204,239.88,239.87,0.66]
[1758401365479,2.804821,239.88,239.87,0.66]
[1758401365684,0.1,239.91,239.87,0.66]
[1758401365884,2.8108258,239.9,239.87,14.25559401]
[1758401366188,2.8108258,239.89,239.88,0.68]
[1758401366586,2.8108258,239.89,239.88,4.84875104]
[1758401368191,0.1,239.91,239.88,4.84875104]
[1758401368484,2.81065144,239.9,239.89,32.68]
[1758401374968,0.1,239.91,239.89,32.68]
[1758401375199,0.1,239.91,239.9,4.8484035]
[1758401377892,0.1,239.91,239.9,36.8284035]
[1758401385005,0.1,239.91,239.9,4.8484035]
[1758401385183,0.1,239.91,239.9,36.7884035]
[1758401385383,0.1,239.91,239.9,32.62]
[1758401385598,0.1,239.91,239.87,0.68]
[1758401385799,0.1,239.91,239.88,31.94]
[1758401385993,2.80970856,239.9,239.88,31.94]
[1758401386184,0.1,239.91,239.88,31.94]
[1758401386382,2.80971541,239.9,239.88,31.94]
[1758401386791,2.80971541,239.9,239.86,0.68]
[1758401386792,1.45437956,239.9,239.86,0.68]
[1758401387107,2.8098727,239.89,239.87,31.94]
[1758401387308,1.45437956,239.9,239.87,31.94]
[1758401387605,2.80986432,239.89,239.87,31.94]
[1758401387797,1.45437956,239.9,239.87,31.94]
[1758401387991,2.80986423,239.89,239.84,17.9912026]
[1758401388194,4.16857726,239.89,239.85,32.64]
[1758401388397,4.16857726,239.89,239.86,0.68]
[1758401388603,4.16857726,239.89,239.87,31.96]
[1758401388803,5.62280623,239.9,239.87,31.96]
[1758401389110,2.80986595,239.89,239.87,32.64]
[1758401389306,5.62280623,239.9,239.87,32.64]
[1758401389601,2.80985112,239.89,239.87,32.64]
[1758401389803,5.62280623,239.9,239.87,32.64]
[1758401390001,2.80985112,239.89,239.87,32.64]
[1758401390210,5.62280623,239.9,239.87,32.64]
[1758401390398,2.80983954,239.89,239.87,32.64]
[1758401390597,5.62280623,239.9,239.87,32.64]
[1758401390786,2.80983954,239.89,239.87,32.64]
[1758401390988,5.62280623,239.9,239.87,32.64]
[1758401391197,2.80983954,239.89,239.87,32.64]
[1758401391396,5.62280623,239.9,239.87,32.64]
[1758401391597,2.80985009,239.89,239.87,32.64]
[1758401391813,5.62280623,239.9,239.87,32.64]
[1758401392004,2.80985009,239.89,239.87,32.64]
[1758401392219,5.62280623,239.9,239.87,32.64]
[1758401392502,2.80986097,239.89,239.87,32.64]
[1758401392814,5.62280623,239.9,239.87,32.64]
[1758401393006,2.8098612,239.89,239.87,32.64]
[1758401393202,5.62280623,239.9,239.87,32.64]
[1758401393404,2.80987194,239.89,239.87,31.96]
[1758401393709,5.62280623,239.9,239.84,13.82179437]
[1758401393911,1.45437956,239.88,239.85,31.94]
[1758401394310,1.45437956,239.88,239.85,32.62]
[1758401395616,5.62326908,239.88,239.85,32.62]
[1758401397717,5.62326908,239.88,239.86,0.66]
[1758401399022,5.62326908,239.88,239.84,0.22620036]
[1758401399322,1.45437956,239.85,239.84,0.22620036]
[1758401399696,4.26440275,239.85,239.84,0.22620036]
[1758401401202,8.43367521,239.85,239.84,0.22620036]
[1758401403199,1.45437956,239.9,239.84,0.88620036]
[1758401403399,2.80854507,239.89,239.85,0.66]
[1758401403698,2.80854507,239.88,239.85,0.66]
[1758401403899,2.80854507,239.87,239.85,0.66]
[1758401404102,2.80854507,239.88,239.85,0.66]
[1758401404308,2.80854507,239.87,239.85,0.66]
[1758401404619,4.26292463,239.88,239.84,0.22620036]
[1758401404815,2.80854507,239.87,239.86,0.66]
[1758401407101,2.80854507,239.87,239.84,32.84620036]
[1758401407301,2.80854507,239.87,239.85,0.66]
[1758401408022,6.97747401,239.87,239.85,0.66]
[1758401410103,2.80854507,239.87,239.85,0.66]
[1758401411225,5.62314431,239.88,239.85,0.66]
[1758401411522,5.62314431,239.88,239.84,32.18620036]
[1758401411734,8.43072996,239.88,239.85,0.66]
[1758401411915,2.80758565,239.87,239.85,0.66]
[1758401413126,2.80758565,239.87,239.86,0.66]
[1758401413319,5.62314431,239.88,239.86,0.66]
[1758401413521,2.80732783,239.87,239.86,0.66]
[1758401414321,4.16892483,239.87,239.86,0.66]
[1758401415509,6.97625266,239.87,239.86,0.66]
[1758401415707,4.16892483,239.87,239.86,0.66]
[1758401416318,6.97625266,239.87,239.86,0.66]
[1758401416828,4.16892483,239.87,239.86,0.66]
[1758401417406,6.97625266,239.87,239.86,0.66]
[1758401417610,4.16892483,239.87,239.86,0.66]
[1758401418528,7.1758506,239.87,239.84,0.22620036]
[1758401418734,1.45437956,239.85,239.84,0.22620036]
[1758401420312,5.62365202,239.85,239.84,0.22620036]
[1758401421229,2.80692577,239.86,239.84,0.88620036]
[1758401421425,1.45437956,239.89,239.85,0.66]
[1758401421628,2.8067257,239.88,239.86,32.0]
[1758401421825,4.26110526,239.89,239.87,0.66]
[1758401422731,8.42970705,239.89,239.88,0.66]
[1758401423113,5.62298135,239.89,239.88,0.66]
[1758401423433,8.42970705,239.89,239.88,0.66]
[1758401426140,5.62298135,239.89,239.88,0.66]
[1758401426437,8.42970705,239.89,239.88,0.66]
[1758401430739,8.42970705,239.89,239.86,32.72]
[1758401430917,2.8067257,239.88,239.87,0.72]
[1758401431115,2.8067257,239.88,239.86,32.0]
[1758401431315,2.8067257,239.87,239.86,32.0]
[1758401431742,2.8067257,239.87,239.86,32.72]
[1758401432923,2.8067257,239.87,239.86,0.72]
[1758401433124,2.8067257,239.87,239.86,32.7]
[1758401442155,2.0867257,239.87,239.86,53.15549033]
[1758401442346,0.1,239.91,239.9,13.59559401]
[1758401442542,0.1,239.91,239.9,47.86948183]
[1758401442857,0.1,239.91,239.9,48.58948183]
[1758401443247,0.1,239.91,239.9,52.75788533]
[1758401444251,0.1,239.91,239.9,53.17472568]
[1758401445655,0.1,239.92,239.9,53.17472568]
[1758401445853,0.1,239.92,239.91,45.51559401]
[1758401447559,0.1,239.92,239.91,45.93241698]
[1758401448357,0.1,239.92,239.91,50.10064673]
[1758401451653,0.1,239.92,239.91,51.77096722]
[1758401451954,0.1,239.99,239.92,44.79559401]
[1758401452277,0.1,239.99,239.98,15.86948183]
[1758401452452,0.1,239.99,239.98,47.86948183]
[1758401452762,0.1,239.99,239.98,48.58948183]
[1758401453257,0.1,239.99,239.98,2.27388782]
[1758401453559,0.79,239.99,239.98,31.98]
[1758401454158,0.1,239.99,239.98,31.98]
[1758401455442,0.1,239.99,239.98,36.14701391]
[1758401457339,0.1,239.99,239.98,31.98]
[1758401458063,0.1,239.99,239.98,34.25388782]
[1758401459150,0.1,239.99,239.98,38.42090173]
[1758401461366,0.1,239.99,239.98,52.71649574]
[1758401464269,0.1,239.99,239.98,65.31514462]
[1758401465054,0.1,239.99,239.98,13.59559401]
[1758401465257,0.1,239.99,239.98,47.82948183]
[1758401465774,0.1,239.99,239.98,48.51948183]
[1758401466863,0.1,239.99,239.98,52.68649574]
[1758401473859,0.1,239.99,239.98,62.68649574]
[1758401474385,1e-08,240.1,240.08,44.79559401]
[1758401474553,0.1,240.11,240.1,18.04672895]
[1758401474873,0.1,240.11,240.1,15.77284113]
[1758401475168,0.1,240.11,240.1,52.62565562]
[1758401475477,0.1,240.11,240.1,53.04214874]
[1758401475779,0.1,240.11,240.1,57.20708001]
[1758401475956,0.1,240.11,240.1,57.18708001]
[1758401476271,0.1,240.11,240.1,56.77058689]
[1758401476648,0.8,240.11,240.1,17.4417678]
[1758401476846,0.8,240.11,240.1,47.97284113]
[1758401477783,0.8,240.11,240.1,34.37724712]
[1758401478254,0.8,240.11,240.1,34.43724712]
[1758401479653,0.8,240.11,240.1,2.17724712]
[1758401479853,0.8,240.11,240.1,34.43724712]
[1758401480065,0.8,240.11,240.1,2.17724712]
[1758401480673,4.96481265,240.11,240.09,32.24]
[1758401480875,0.7,240.1,240.09,32.24]
[1758401481270,0.7,240.1,240.05,13.59559401]
[1758401481473,0.7,240.09,240.06,32.24]
[1758401481781,0.7,240.08,240.06,32.24]
[1758401482473,0.7,240.08,240.06,36.40555652]
[1758401482658,0.7,240.08,240.06,32.24]
[1758401485274,0.1,240.11,240.06,32.24]
[1758401485482,0.7,240.1,240.06,32.24]
[1758401485884,0.1,240.11,240.06,32.24]
[1758401486183,0.7,240.1,240.06,32.24]
[1758401486383,0.1,240.11,240.07,0.68]
[1758401486572,0.1,240.11,240.08,32.22]
[1758401486884,0.77,240.11,240.08,32.22]
[1758401487384,0.1,240.11,240.09,0.68]
[1758401487586,0.1,240.11,240.1,32.22]
[1758401490288,0.1,240.11,240.1,32.9]
[1758401491789,0.1,240.11,240.1,37.06493127]
[1758401496372,0.1,240.11,240.1,32.9]
[1758401496573,0.1,240.11,240.1,32.22]
[1758401498078,0.77,240.11,240.1,32.22]
[1758401498901,0.77,240.11,240.06,4.84547448]
[1758401499075,0.77,240.11,240.07,32.16]
[1758401499695,0.77,240.11,240.07,32.84]
[1758401500979,0.1,240.11,240.08,0.68]
[1758401501179,0.1,240.11,240.09,32.16]
[1758401511202,0.1,240.11,240.09,32.84]
[1758401513493,0.1,240.11,240.1,0.68]
[1758401516798,0.1,240.11,240.09,32.84]
[1758401518299,2.90483544,240.11,240.09,32.84]
[1758401518494,0.1,240.11,240.1,0.68]
[1758401518714,2.90483544,240.11,240.1,0.68]
[1758401518891,0.1,240.11,240.1,0.68]
[1758401519089,2.90483544,240.11,240.1,0.68]
[1758401519302,0.1,240.11,240.1,0.68]
[1758401519510,2.90483544,240.11,240.1,0.68]
[1758401519824,0.1,240.11,240.1,0.68]
[1758401520105,2.90483544,240.11,240.1,0.68]
[1758401522414,2.90483544,240.11,240.09,32.16]
[1758401522590,2.80483544,240.1,240.09,32.84]
[1758401524210,2.80483544,240.1,240.09,32.16]
[1758401526594,2.80483544,240.1,240.09,32.82]
[1758401530399,2.80483544,240.1,240.09,0.66]
[1758401530598,2.80483544,240.1,240.09,32.68]
[1758401533816,2.80483544,240.1,240.09,0.66]
[1758401534019,2.80483544,240.1,240.09,32.66]
[1758401534620,2.80483544,240.1,240.09,0.66]
[1758401534838,2.80483544,240.1,240.09,32.66]
[1758401535209,2.80483544,240.1,240.09,0.66]
[1758401535417,2.80483544,240.1,240.09,32.66]
[1758401538044,2.80483544,240.1,240.09,32.0]
[1758401538217,7.64976671,240.1,240.05,14.25559401]
[1758401538418,2.80483544,240.09,240.07,31.98]
[1758401538726,2.80483544,240.08,240.07,31.98]
[1758401539113,3.48483544,240.08,240.05,13.59559401]
[1758401539429,2.81316748,240.07,240.03,0.66]
[1758401539625,2.81316748,240.06,240.04,31.98]
[1758401539832,2.81316748,240.05,240.04,31.98]
[1758401540535,3.49316748,240.05,240.01,2.17644769]
[1758401540706,5.62072892,240.04,240.01,2.17644769]
[1758401540911,2.81316748,240.03,240.01,2.17644769]
[1758401541118,0.68,240.04,240.01,2.17644769]
[1758401541119,2.81316748,240.02,240.01,2.17644769]
[1758401543325,2.81316748,240.03,240.01,2.17644769]
[1758401543636,2.81316748,240.02,240.01,2.17644769]
[1758401543841,2.81316748,240.03,240.01,2.17644769]
[1758401544032,4.84605063,240.04,240.01,2.17644769]
[1758401544033,2.81316748,240.02,240.01,2.17644769]
[1758401544234,2.81316748,240.03,240.01,2.17644769]
[1758401544534,4.84605063,240.04,240.01,2.17644769]
[1758401544734,2.80729061,240.03,240.01,2.17644769]
[1758401545033,4.84605063,240.04,240.01,2.17644769]
[1758401545233,2.80729045,240.03,240.01,2.17644769]
[1758401547324,4.84605063,240.04,240.01,2.17644769]
[1758401547521,3.48729045,240.03,240.01,2.17644769]
[1758401548235,0.68,240.02,240.01,2.17644769]
[1758401548419,5.60843867,240.02,239.92,13.59559401]
[1758401548740,4.16605063,240.04,239.97,2.17743751]
[1758401548741,5.60843867,240.01,239.97,2.17743751]
[1758401548932,2.80729045,240.0,239.96,0.7]
[1758401549130,3.48729045,240.0,239.96,0.7]
[1758401549320,0.68,240.0,239.97,2.17753417]
[1758401549516,2.80729045,240.02,239.98,0.7]
[1758401549866,4.84615818,240.03,239.98,0.7]
[1758401550021,2.80729045,240.02,239.98,0.7]
[1758401550224,2.80729045,240.02,239.97,2.17753417]
[1758401550225,4.84615818,240.03,239.97,2.17753417]
[1758401550429,4.84615818,240.03,239.99,0.7]
[1758401551041,7.65344863,240.03,239.99,0.7]
[1758401551235,2.80729045,240.02,240.0,0.7]
[1758401551423,4.16615818,240.03,240.0,0.7]
[1758401551626,4.84615818,240.03,239.97,6.3446577]
[1758401551938,4.84615818,240.03,239.98,0.7]
[1758401552317,4.16615818,240.03,239.98,0.7]
[1758401552538,1.04297574,240.02,239.98,0.7]
[1758401553336,7.64782055,240.03,239.98,0.7]
[1758401553545,2.80166237,240.02,239.98,0.7]
[1758401553843,4.84635469,240.02,239.98,0.7]
[1758401554726,7.64801706,240.02,239.98,0.7]
[1758401554930,4.84635469,240.02,239.98,0.7]
[1758401555547,0.68,240.01,239.98,0.7]
[1758401555754,0.68,240.01,239.97,2.17753417]
[1758401555918,0.68,240.01,239.97,2.87753417]
[1758401556942,0.68,240.01,239.97,2.17753417]
[1758401557143,0.68,240.01,239.97,2.87753417]
[1758401557647,4.16635469,240.02,239.98,0.7]
[1758401557947,4.84635469,240.02,239.98,0.7]
[1758401562370,4.16614589,240.03,239.97,2.17753417]
[1758401562532,0.68,240.01,239.97,2.17753417]
[1758401562732,0.68,240.01,239.97,2.87753417]
[1758401565046,4.84645935,240.02,239.98,0.7]
[1758401566955,7.64587504,240.04,239.98,0.7]
[1758401571283,1.04298836,240.03,239.97,2.17753417]
[1758401571476,0.68,240.02,239.97,2.17753417]
[1758401571679,0.68,240.01,239.97,2.17753417]
[1758401571978,0.68,240.0,239.97,2.17753417]
[1758401572674,0.68,240.0,239.97,2.87753417]
[1758401573081,4.84649306,240.01,239.97,2.87753417]
[1758401574155,4.16649306,240.01,239.97,2.87753417]
[1758401574356,4.84649306,240.01,239.97,2.87753417]
[1758401575181,7.64644126,240.01,239.97,2.87753417]
[1758401576481,6.96644126,240.01,239.98,0.67]
[1758401577493,2.7999482,240.01,239.98,0.67]
[1758401577698,0.68,240.06,239.98,4.83695319]
[1758401577883,5.96258727,240.04,239.99,0.67]
[1758401578064,1.04298108,240.03,239.99,0.67]
[1758401578374,2.8011112,240.05,239.99,0.67]
[1758401578584,12.52740369,240.04,239.99,0.67]
[1758401578896,4.84577239,240.06,239.99,0.67]
[1758401579189,8.0114314,240.05,240.0,4.16666666]
[1758401579488,1.04285814,240.04,240.01,0.67]
[1758401579784,6.96857314,240.05,240.02,0.67]
[1758401582168,2.80161995,240.04,240.02,0.67]
[1758401583196,2.80161995,240.03,240.02,0.67]
[1758401583376,2.80161995,240.04,240.02,0.67]
[1758401583578,2.80161995,240.03,240.02,0.67]
[1758401583763,2.80161995,240.04,240.02,0.67]
[1758401583966,2.80161995,240.03,240.02,0.67]
[1758401586682,2.80161995,240.03,240.02,4.83631947]
[1758401586860,2.80161995,240.03,240.02,4.86631947]
[1758401589095,2.80161995,240.07,240.02,4.86631947]
[1758401589269,5.96910587,240.06,240.03,0.7]
[1758401589592,3.84438357,240.05,240.03,0.7]
[1758401589774,2.80161995,240.04,240.03,0.7]
[1758401590775,2.80161995,240.07,240.04,4.16597233]
[1758401590980,5.96874724,240.06,240.05,0.7]
[1758401592382,5.96874724,240.06,240.02,4.86631947]
[1758401592575,2.80161995,240.05,240.02,4.86631947]
[1758401592787,0.67,240.06,240.02,4.86631947]
[1758401593173,4.16666666,240.08,240.02,4.16631947]
[1758401593488,3.84979715,240.07,240.03,0.7]
[1758401593660,2.80710959,240.06,240.03,0.7]
[1758401593862,0.67,240.07,240.03,0.7]
[1758401594063,2.8071439,240.06,240.03,0.7]
[1758401594283,2.80681371,240.06,240.03,4.86612894]
[1758401594481,0.67,240.07,240.03,4.86612894]
[1758401594686,2.8068477,240.06,240.03,4.86612894]